[Event "*** Titled Tuesday Blitz"]
[Site "Chess.com"]
[Date "2020.12.01"]
[Round "8"]
[White "Agibileg"]
[Black "Ladislav1969"]
[Result "0-1"]
[WhiteElo "2520"]
[BlackElo "2379"]
[TimeControl "180+1"]
[EndTime "11:27:32 PST"]
[Termination "Ladislav1969 won by checkmate"]

1. d4 {[%clk 0:03:00.9]} 1... Nf6 {[%clk 0:02:59.3]} 2. c4 {[%clk 0:03:01.5]}
2... g6 {[%clk 0:03:00.2]} 3. Nc3 {[%clk 0:03:00.4]} 3... d5 {[%clk 0:03:00.8]}
4. cxd5 {[%clk 0:03:00.2]} 4... Nxd5 {[%clk 0:03:01.7]} 5. e4 {[%clk 0:03:00.8]}
5... Nxc3 {[%clk 0:03:01.8]} 6. bxc3 {[%clk 0:03:01.7]} 6... c5 {[%clk
0:03:02.5]} 7. Nf3 {[%clk 0:03:00.8]} 7... Bg7 {[%clk 0:03:03]} 8. Bb5+ {[%clk
0:03:01.4]} 8... Nc6 {[%clk 0:03:02.2]} 9. O-O {[%clk 0:02:54.5]} 9... O-O
{[%clk 0:02:53.5]} 10. d5 {[%clk 0:02:54.5]} 10... Qa5 {[%clk 0:02:48.4]} 11.
Rb1 {[%clk 0:02:46.1]} 11... Ne5 {[%clk 0:02:36.1]} 12. Nxe5 {[%clk 0:02:44.6]}
12... Bxe5 {[%clk 0:02:35.5]} 13. Be3 {[%clk 0:02:18.7]} 13... Bxc3 {[%clk
0:02:12.9]} 14. Bxc5 {[%clk 0:02:00]} 14... a6 {[%clk 0:02:13.1]} 15. Bxe7
{[%clk 0:01:59.4]} 15... axb5 {[%clk 0:02:12.7]} 16. Bxf8 {[%clk 0:01:59.9]}
16... Kxf8 {[%clk 0:02:12.4]} 17. e5 {[%clk 0:01:46.9]} 17... Bxe5 {[%clk
0:02:04.1]} 18. Qe2 {[%clk 0:01:46.8]} 18... Bf6 {[%clk 0:01:57.8]} 19. Rxb5
{[%clk 0:01:38.7]} 19... Qxa2 {[%clk 0:01:55.4]} 20. Qf3 {[%clk 0:01:38.8]}
20... Kg7 {[%clk 0:01:47.8]} 21. d6 {[%clk 0:01:31.8]} 21... Qc4 {[%clk
0:01:38.3]} 22. Rb6 {[%clk 0:01:10.7]} 22... Bg4 {[%clk 0:01:34.6]} 23. Qxb7
{[%clk 0:01:05.5]} 23... Rd8 {[%clk 0:01:16.2]} 24. Qc7 {[%clk 0:00:51.9]} 24...
Qd3 {[%clk 0:01:09.8]} 25. h3 {[%clk 0:00:43.5]} 25... Be6 {[%clk 0:01:06.5]}
26. Re1 {[%clk 0:00:41.1]} 26... Rd7 {[%clk 0:01:05.4]} 27. Qc6 {[%clk
0:00:29.8]} 27... Qd5 {[%clk 0:00:52.4]} 28. Qxd5 {[%clk 0:00:21.1]} 28... Bxd5
{[%clk 0:00:52.6]} 29. Rd1 {[%clk 0:00:20.5]} 29... Be6 {[%clk 0:00:50.9]} 30.
f4 {[%clk 0:00:19.6]} 30... g5 {[%clk 0:00:45.7]} 31. g3 {[%clk 0:00:17.3]}
31... gxf4 {[%clk 0:00:45.4]} 32. gxf4 {[%clk 0:00:18.2]} 32... Bxh3 {[%clk
0:00:45.6]} 33. Kh2 {[%clk 0:00:18]} 33... Bf5 {[%clk 0:00:44.4]} 34. Rg1+
{[%clk 0:00:16.8]} 34... Kf8 {[%clk 0:00:41.5]} 35. Rg3 {[%clk 0:00:15.4]} 35...
h5 {[%clk 0:00:37.8]} 36. Kg1 {[%clk 0:00:12.8]} 36... h4 {[%clk 0:00:36.4]} 37.
Rg2 {[%clk 0:00:12.6]} 37... Bd4+ {[%clk 0:00:36.4]} 38. Kh2 {[%clk 0:00:11.6]}
38... Bxb6 {[%clk 0:00:37.3]} 39. Rd2 {[%clk 0:00:09.4]} 39... Be3 {[%clk
0:00:36.1]} 40. Rd5 {[%clk 0:00:09.6]} 40... Bxf4+ {[%clk 0:00:36.2]} 41. Kg1
{[%clk 0:00:09.4]} 41... Be6 {[%clk 0:00:36.7]} 42. Rh5 {[%clk 0:00:09]} 42...
Rxd6 {[%clk 0:00:36.2]} 43. Rxh4 {[%clk 0:00:09.3]} 43... Be5 {[%clk 0:00:34.3]}
44. Re4 {[%clk 0:00:07.9]} 44... f6 {[%clk 0:00:34.6]} 45. Re2 {[%clk
0:00:07.4]} 45... Ke7 {[%clk 0:00:34.9]} 46. Kf2 {[%clk 0:00:07.3]} 46... Bd4+
{[%clk 0:00:33.6]} 47. Kf3 {[%clk 0:00:06.7]} 47... Be5 {[%clk 0:00:34.5]} 48.
Re1 {[%clk 0:00:06.2]} 48... Rd3+ {[%clk 0:00:34.5]} 49. Ke4 {[%clk 0:00:06.2]}
49... Rd4+ {[%clk 0:00:34.9]} 50. Ke3 {[%clk 0:00:06.3]} 50... Ra4 {[%clk
0:00:35.4]} 51. Re2 {[%clk 0:00:05.5]} 51... Bd5 {[%clk 0:00:34.7]} 52. Re1
{[%clk 0:00:04.4]} 52... Re4+ {[%clk 0:00:34.3]} 53. Kd3 {[%clk 0:00:03.3]}
53... Rxe1 {[%clk 0:00:35.2]} 54. Kc2 {[%clk 0:00:03.2]} 54... Re3 {[%clk
0:00:34.5]} 55. Kd2 {[%clk 0:00:03.3]} 55... Rc3 {[%clk 0:00:34.4]} 56. Ke2
{[%clk 0:00:03.7]} 56... Kd6 {[%clk 0:00:34.5]} 57. Kd2 {[%clk 0:00:04]} 57...
Kc5 {[%clk 0:00:34.8]} 58. Ke2 {[%clk 0:00:04.5]} 58... Kd4 {[%clk 0:00:35]} 59.
Kd2 {[%clk 0:00:05.2]} 59... Bf4+ {[%clk 0:00:35.3]} 60. Ke2 {[%clk 0:00:05.4]}
60... Bf3+ {[%clk 0:00:35.2]} 61. Kf2 {[%clk 0:00:05.5]} 61... Ke4 {[%clk
0:00:35.2]} 62. Kf1 {[%clk 0:00:03.1]} 62... Ke3 {[%clk 0:00:34.9]} 63. Kg1
{[%clk 0:00:01.7]} 63... Rc1# {[%clk 0:00:35]} 0-1

[Event "*** Titled Tuesday Blitz"]
[Site "Chess.com"]
[Date "2020.12.01"]
[Round "8"]
[White "ZuchBolt"]
[Black "onetowin"]
[Result "0-1"]
[WhiteElo "2119"]
[BlackElo "2016"]
[TimeControl "180+1"]
[EndTime "11:27:32 PST"]
[Termination "onetowin won by resignation"]

1. e4 {[%clk 0:03:00.9]} 1... c5 {[%clk 0:02:59.7]} 2. Nf3 {[%clk 0:02:59.2]}
2... e6 {[%clk 0:02:59.8]} 3. d4 {[%clk 0:02:59.6]} 3... cxd4 {[%clk 0:03:00.5]}
4. Nxd4 {[%clk 0:03:00.2]} 4... Nc6 {[%clk 0:03:00.7]} 5. Nc3 {[%clk 0:03:00.7]}
5... Qc7 {[%clk 0:03:00.1]} 6. Be3 {[%clk 0:03:01.2]} 6... a6 {[%clk 0:03:00.3]}
7. Qf3 {[%clk 0:03:01]} 7... Ne5 {[%clk 0:02:53.8]} 8. Qg3 {[%clk 0:02:59.6]}
8... h5 {[%clk 0:02:53.7]} 9. Bf4 {[%clk 0:02:49.7]} 9... d6 {[%clk 0:02:49.9]}
10. O-O-O {[%clk 0:02:39.5]} 10... Nf6 {[%clk 0:02:49.2]} 11. h3 {[%clk
0:02:35.6]} 11... h4 {[%clk 0:02:46.9]} 12. Qe3 {[%clk 0:02:32.2]} 12... b5
{[%clk 0:02:35.2]} 13. Bh2 {[%clk 0:01:47.2]} 13... Bb7 {[%clk 0:02:26.4]} 14.
f4 {[%clk 0:01:46.5]} 14... Nc4 {[%clk 0:02:25.1]} 15. Bxc4 {[%clk 0:01:46]}
15... Qxc4 {[%clk 0:02:26]} 16. e5 {[%clk 0:01:24]} 16... dxe5 {[%clk
0:02:20.5]} 17. fxe5 {[%clk 0:01:23]} 17... Nd5 {[%clk 0:02:20.7]} 18. Nxd5
{[%clk 0:01:22.7]} 18... Bxd5 {[%clk 0:02:20.7]} 19. b3 {[%clk 0:01:23]} 19...
Ba3+ {[%clk 0:02:10.5]} 20. Kb1 {[%clk 0:01:22]} 20... Qc5 {[%clk 0:02:01.1]}
21. Nf5 {[%clk 0:01:16.2]} 21... Qxe3 {[%clk 0:01:52.4]} 22. Nxe3 {[%clk
0:01:17.1]} 22... Be4 {[%clk 0:01:52.7]} 23. Rd4 {[%clk 0:01:16.6]} 23... Bg6
{[%clk 0:01:41]} 24. Bf4 {[%clk 0:01:06.3]} 24... Rc8 {[%clk 0:01:38.6]} 25.
Rhd1 {[%clk 0:00:59.6]} 25... Bc5 {[%clk 0:01:36.8]} 26. R4d2 {[%clk 0:00:59.1]}
26... O-O {[%clk 0:01:11.4]} 27. Kb2 {[%clk 0:00:53.8]} 27... Bb4 {[%clk
0:01:07.9]} 28. Rd7 {[%clk 0:00:47]} 28... Be4 {[%clk 0:00:54]} 29. a3 {[%clk
0:00:19.4]} 29... Bc5 {[%clk 0:00:53.4]} 30. R1d2 {[%clk 0:00:18.2]} 30... Rc6
{[%clk 0:00:42.3]} 31. b4 {[%clk 0:00:17.6]} 31... Bb6 {[%clk 0:00:38.4]} 32.
R7d6 {[%clk 0:00:14.7]} 32... Rfc8 {[%clk 0:00:35.3]} 33. Rxc6 {[%clk
0:00:12.9]} 33... Rxc6 {[%clk 0:00:36.2]} 34. c4 {[%clk 0:00:12.2]} 34... Bxe3
{[%clk 0:00:28.8]} 35. Bxe3 {[%clk 0:00:12.5]} 35... Rxc4 {[%clk 0:00:29.3]} 36.
Rd4 {[%clk 0:00:10.1]} 36... Rxd4 {[%clk 0:00:27.2]} 37. Bxd4 {[%clk 0:00:09.7]}
37... Bxg2 {[%clk 0:00:27.8]} 38. Bf2 {[%clk 0:00:10]} 38... g5 {[%clk
0:00:24.6]} 39. Be3 {[%clk 0:00:09.5]} 39... g4 {[%clk 0:00:16.6]} 40. hxg4
{[%clk 0:00:10.4]} 40... h3 {[%clk 0:00:16.4]} 41. Bf4 {[%clk 0:00:10.7]} 41...
Kg7 {[%clk 0:00:16.6]} 42. Kc3 {[%clk 0:00:10.4]} 42... f6 {[%clk 0:00:09.7]}
43. Kd4 {[%clk 0:00:09.4]} 43... Kg6 {[%clk 0:00:08.8]} 44. Kc5 {[%clk
0:00:07.6]} 44... f5 {[%clk 0:00:06.9]} 45. Kb6 {[%clk 0:00:05.9]} 45... fxg4
{[%clk 0:00:06.4]} 46. Kxa6 {[%clk 0:00:05.8]} 46... Bf1 {[%clk 0:00:06.6]} 47.
Ka5 {[%clk 0:00:04.9]} 47... Kf5 {[%clk 0:00:06.3]} 48. Bh2 {[%clk 0:00:05.3]}
48... Ke4 {[%clk 0:00:06.3]} 49. a4 {[%clk 0:00:05.7]} 49... bxa4 {[%clk
0:00:05.5]} 50. Kxa4 {[%clk 0:00:06.6]} 50... Kf3 {[%clk 0:00:04.7]} 51. b5
{[%clk 0:00:06]} 51... Bxb5+ {[%clk 0:00:04.4]} 52. Kxb5 {[%clk 0:00:06.9]}
52... g3 {[%clk 0:00:04.6]} 0-1

[Event "*** Titled Tuesday Blitz"]
[Site "Chess.com"]
[Date "2020.12.01"]
[Round "8"]
[White "shnitez"]
[Black "sergiochess83"]
[Result "0-1"]
[WhiteElo "2586"]
[BlackElo "2796"]
[TimeControl "180+1"]
[EndTime "11:27:36 PST"]
[Termination "sergiochess83 won by resignation"]

1. c4 {[%clk 0:03:00.9]} 1... e5 {[%clk 0:02:59.3]} 2. Nc3 {[%clk 0:03:00.8]}
2... Nf6 {[%clk 0:02:59.1]} 3. Nf3 {[%clk 0:03:01.3]} 3... Nc6 {[%clk
0:02:58.7]} 4. e3 {[%clk 0:03:01.7]} 4... Bb4 {[%clk 0:02:58.5]} 5. Qc2 {[%clk
0:03:01.9]} 5... Bxc3 {[%clk 0:02:56.5]} 6. Qxc3 {[%clk 0:02:59.6]} 6... Qe7
{[%clk 0:02:55.5]} 7. a3 {[%clk 0:02:58.9]} 7... d5 {[%clk 0:02:27]} 8. d4
{[%clk 0:02:50.2]} 8... exd4 {[%clk 0:02:09.3]} 9. Nxd4 {[%clk 0:02:49.9]} 9...
Nxd4 {[%clk 0:02:09.5]} 10. Qxd4 {[%clk 0:02:50.8]} 10... c5 {[%clk 0:02:09.6]}
11. Qh4 {[%clk 0:02:33.8]} 11... Be6 {[%clk 0:02:05.9]} 12. cxd5 {[%clk
0:02:27.1]} 12... Nxd5 {[%clk 0:02:05.4]} 13. Qxe7+ {[%clk 0:02:13.1]} 13...
Kxe7 {[%clk 0:02:05]} 14. e4 {[%clk 0:02:10.3]} 14... Nb6 {[%clk 0:01:57.7]} 15.
Be3 {[%clk 0:02:07.3]} 15... Rac8 {[%clk 0:01:57.4]} 16. Rc1 {[%clk 0:02:00.1]}
16... c4 {[%clk 0:01:52.2]} 17. Be2 {[%clk 0:01:57.3]} 17... Na4 {[%clk
0:01:49.5]} 18. Bxa7 {[%clk 0:01:33.9]} 18... Nxb2 {[%clk 0:01:41.7]} 19. Bd4
{[%clk 0:01:29.8]} 19... Na4 {[%clk 0:01:41.7]} 20. Bxg7 {[%clk 0:01:23.4]}
20... Rhg8 {[%clk 0:01:41.6]} 21. Be5 {[%clk 0:01:23.7]} 21... f6 {[%clk
0:01:38.9]} 22. Bf4 {[%clk 0:01:19]} 22... Nc5 {[%clk 0:01:32.3]} 23. O-O {[%clk
0:00:48.6]} 23... Nxe4 {[%clk 0:01:27.6]} 24. Rfe1 {[%clk 0:00:46.6]} 24... f5
{[%clk 0:01:10.4]} 25. f3 {[%clk 0:00:41.3]} 25... Nd6 {[%clk 0:01:10.5]} 26.
Red1 {[%clk 0:00:30.5]} 26... Nf7 {[%clk 0:00:54.5]} 27. Rd4 {[%clk 0:00:27.5]}
27... b5 {[%clk 0:00:49.7]} 28. a4 {[%clk 0:00:22.6]} 28... bxa4 {[%clk
0:00:44.2]} 29. Bxc4 {[%clk 0:00:22.5]} 29... Rxc4 {[%clk 0:00:38.1]} 30. Rdxc4
{[%clk 0:00:23.4]} 30... Bxc4 {[%clk 0:00:38.7]} 31. Rxc4 {[%clk 0:00:23.8]}
31... Ra8 {[%clk 0:00:39.3]} 32. Rc7+ {[%clk 0:00:19.2]} 32... Ke6 {[%clk
0:00:39.1]} 33. Rc6+ {[%clk 0:00:18]} 33... Kd7 {[%clk 0:00:14.9]} 34. Rf6
{[%clk 0:00:17.8]} 34... Ke7 {[%clk 0:00:14.4]} 35. Rxf5 {[%clk 0:00:16.2]}
35... a3 {[%clk 0:00:14.8]} 36. Be5 {[%clk 0:00:15.2]} 36... Nxe5 {[%clk
0:00:10.1]} 37. Rxe5+ {[%clk 0:00:16.1]} 37... Kd6 {[%clk 0:00:11]} 38. Re1
{[%clk 0:00:16.2]} 38... a2 {[%clk 0:00:10.1]} 39. Ra1 {[%clk 0:00:16.8]} 39...
Kc5 {[%clk 0:00:10.6]} 40. f4 {[%clk 0:00:11.1]} 40... Kb4 {[%clk 0:00:10.7]}
41. f5 {[%clk 0:00:11.2]} 41... Kb3 {[%clk 0:00:11.2]} 42. Kf2 {[%clk
0:00:08.6]} 42... Kb2 {[%clk 0:00:11.6]} 43. Rd1 {[%clk 0:00:05.6]} 43... a1=Q
{[%clk 0:00:06.7]} 44. Rxa1 {[%clk 0:00:05.1]} 44... Rxa1 {[%clk 0:00:07.2]} 45.
g4 {[%clk 0:00:04.8]} 45... Kc3 {[%clk 0:00:07.5]} 46. Ke3 {[%clk 0:00:05.2]}
46... Re1+ {[%clk 0:00:05.1]} 47. Kf4 {[%clk 0:00:05.2]} 47... Kd4 {[%clk
0:00:06]} 48. f6 {[%clk 0:00:03.4]} 48... Rf1+ {[%clk 0:00:05.1]} 49. Kg5 {[%clk
0:00:03.8]} 49... Ke5 {[%clk 0:00:05.6]} 50. Kh6 {[%clk 0:00:04.7]} 50... Kxf6
{[%clk 0:00:04.9]} 51. h4 {[%clk 0:00:03.7]} 51... Rh1 {[%clk 0:00:03.8]} 52.
g5+ {[%clk 0:00:03]} 52... Kf5 {[%clk 0:00:03.7]} 53. h5 {[%clk 0:00:02.6]}
53... Rh2 {[%clk 0:00:03.8]} 54. Kxh7 {[%clk 0:00:02]} 54... Rxh5+ {[%clk
0:00:03.7]} 0-1

[Event "*** Titled Tuesday Blitz"]
[Site "Chess.com"]
[Date "2020.12.01"]
[Round "8"]
[White "Markov_Mikhail"]
[Black "Oleksandr_Bortnyk"]
[Result "0-1"]
[WhiteElo "2717"]
[BlackElo "2888"]
[TimeControl "180+1"]
[EndTime "11:27:41 PST"]
[Termination "Oleksandr_Bortnyk won by checkmate"]

1. c4 {[%clk 0:03:00.9]} 1... Nf6 {[%clk 0:02:48.9]} 2. Nf3 {[%clk 0:03:00.9]}
2... b6 {[%clk 0:02:46.3]} 3. g3 {[%clk 0:03:01.1]} 3... Bb7 {[%clk 0:02:47.2]}
4. Bg2 {[%clk 0:03:01.7]} 4... g6 {[%clk 0:02:47.3]} 5. O-O {[%clk 0:03:02.3]}
5... Bg7 {[%clk 0:02:47.6]} 6. Nc3 {[%clk 0:03:02.7]} 6... O-O {[%clk 0:02:48]}
7. d4 {[%clk 0:03:03.3]} 7... Ne4 {[%clk 0:02:48.5]} 8. Na4 {[%clk 0:03:04]}
8... d5 {[%clk 0:02:44.5]} 9. Qc2 {[%clk 0:03:03.8]} 9... dxc4 {[%clk
0:02:23.5]} 10. Nd2 {[%clk 0:02:50.9]} 10... Nd6 {[%clk 0:02:18.7]} 11. Bxb7
{[%clk 0:02:30.6]} 11... Nxb7 {[%clk 0:02:19.6]} 12. e3 {[%clk 0:02:29.5]} 12...
b5 {[%clk 0:01:35.3]} 13. Nc3 {[%clk 0:02:29.2]} 13... c6 {[%clk 0:01:31.9]} 14.
a4 {[%clk 0:01:45.5]} 14... Nd6 {[%clk 0:01:29.4]} 15. Nde4 {[%clk 0:01:39.1]}
15... b4 {[%clk 0:01:23.7]} 16. Ne2 {[%clk 0:01:39]} 16... b3 {[%clk 0:01:23.7]}
17. Qb1 {[%clk 0:01:39.2]} 17... a5 {[%clk 0:01:22.5]} 18. Bd2 {[%clk
0:01:36.7]} 18... Nd7 {[%clk 0:01:18.6]} 19. Rc1 {[%clk 0:01:29.5]} 19... Nb6
{[%clk 0:01:17.6]} 20. Nc5 {[%clk 0:01:30.1]} 20... e6 {[%clk 0:01:06.4]} 21. e4
{[%clk 0:01:21.7]} 21... Qe7 {[%clk 0:01:04.1]} 22. Bc3 {[%clk 0:01:11.4]} 22...
Rfd8 {[%clk 0:01:03]} 23. Rd1 {[%clk 0:01:08.2]} 23... Bh6 {[%clk 0:00:48.1]}
24. f4 {[%clk 0:01:06.4]} 24... Nb7 {[%clk 0:00:45.4]} 25. Nxb7 {[%clk
0:00:46.3]} 25... Qxb7 {[%clk 0:00:46.3]} 26. Qc1 {[%clk 0:00:46.8]} 26... Bf8
{[%clk 0:00:40]} 27. Qe3 {[%clk 0:00:40.8]} 27... c5 {[%clk 0:00:39.1]} 28. f5
{[%clk 0:00:32.4]} 28... exf5 {[%clk 0:00:36.7]} 29. exf5 {[%clk 0:00:32.4]}
29... Re8 {[%clk 0:00:32.5]} 30. Qf2 {[%clk 0:00:30.6]} 30... Qc6 {[%clk
0:00:26.6]} 31. fxg6 {[%clk 0:00:21.6]} 31... hxg6 {[%clk 0:00:22.9]} 32. d5
{[%clk 0:00:17.9]} 32... Nxd5 {[%clk 0:00:21.7]} 33. Rxd5 {[%clk 0:00:17.6]}
33... Qxd5 {[%clk 0:00:17.7]} 34. Qf6 {[%clk 0:00:17.3]} 34... Qh5 {[%clk
0:00:18.2]} 35. Nf4 {[%clk 0:00:15.7]} 35... Qh6 {[%clk 0:00:14.3]} 36. Nd5
{[%clk 0:00:13.8]} 36... Rad8 {[%clk 0:00:08.6]} 37. Rf1 {[%clk 0:00:13.1]}
37... Rd7 {[%clk 0:00:05.4]} 38. Qc6 {[%clk 0:00:11.6]} 38... Rxd5 {[%clk
0:00:04.1]} 39. Qxe8 {[%clk 0:00:11.6]} 39... Rf5 {[%clk 0:00:03.5]} 40. Rxf5
{[%clk 0:00:10.1]} 40... gxf5 {[%clk 0:00:04.4]} 41. Qe5 {[%clk 0:00:10.2]}
41... Bg7 {[%clk 0:00:03.7]} 42. Qe8+ {[%clk 0:00:06.7]} 42... Bf8 {[%clk
0:00:02.4]} 43. Qe5 {[%clk 0:00:06.8]} 43... Qh7 {[%clk 0:00:02.4]} 44. Qf6
{[%clk 0:00:05.6]} 44... Qh5 {[%clk 0:00:01.9]} 45. h4 {[%clk 0:00:03.8]} 45...
Qd1+ {[%clk 0:00:02]} 46. Kh2 {[%clk 0:00:04]} 46... Qh5 {[%clk 0:00:02.9]} 47.
Kh3 {[%clk 0:00:04.2]} 47... Qg4+ {[%clk 0:00:03.2]} 48. Kh2 {[%clk 0:00:04.5]}
48... Bg7 {[%clk 0:00:04.1]} 49. Qd8+ {[%clk 0:00:04.4]} 49... Kh7 {[%clk
0:00:04.6]} 50. Bxg7 {[%clk 0:00:04.1]} 50... Qxg7 {[%clk 0:00:05.3]} 51. Qe7
{[%clk 0:00:02.9]} 51... Qxb2+ {[%clk 0:00:05.5]} 52. Kh3 {[%clk 0:00:03.8]}
52... Qg7 {[%clk 0:00:06.2]} 53. Qd7 {[%clk 0:00:02.8]} 53... b2 {[%clk
0:00:04.7]} 54. Qxf5+ {[%clk 0:00:02.9]} 54... Qg6 {[%clk 0:00:05.4]} 55. Qe5
{[%clk 0:00:03.3]} 55... b1=Q {[%clk 0:00:05.6]} 56. h5 {[%clk 0:00:02.4]} 56...
Qh1# {[%clk 0:00:05.4]} 0-1

[Event "*** Titled Tuesday Blitz"]
[Site "Chess.com"]
[Date "2020.12.01"]
[Round "8"]
[White "Nemsko"]
[Black "awesomevishesh"]
[Result "0-1"]
[WhiteElo "2385"]
[BlackElo "2554"]
[TimeControl "180+1"]
[EndTime "11:27:44 PST"]
[Termination "awesomevishesh won by resignation"]

1. e4 {[%clk 0:03:00.9]} 1... c6 {[%clk 0:02:31.7]} 2. d4 {[%clk 0:03:00.4]}
2... d5 {[%clk 0:02:32.2]} 3. e5 {[%clk 0:03:01]} 3... Bf5 {[%clk 0:02:30.2]} 4.
Nf3 {[%clk 0:03:01.4]} 4... e6 {[%clk 0:02:22.2]} 5. Be2 {[%clk 0:03:01.3]} 5...
Ne7 {[%clk 0:02:18.2]} 6. O-O {[%clk 0:03:01.7]} 6... Ng6 {[%clk 0:02:17.7]} 7.
a4 {[%clk 0:03:02]} 7... a5 {[%clk 0:02:10.1]} 8. c3 {[%clk 0:02:59.8]} 8... Nd7
{[%clk 0:02:08.6]} 9. Be3 {[%clk 0:02:56.6]} 9... f6 {[%clk 0:02:07.9]} 10. exf6
{[%clk 0:02:55.3]} 10... Qxf6 {[%clk 0:02:07.9]} 11. Nbd2 {[%clk 0:02:48.9]}
11... Bd6 {[%clk 0:02:05.8]} 12. Re1 {[%clk 0:02:37.9]} 12... O-O {[%clk
0:02:04.7]} 13. Nf1 {[%clk 0:02:36.5]} 13... Nf4 {[%clk 0:02:00.3]} 14. Bxf4
{[%clk 0:02:31.9]} 14... Bxf4 {[%clk 0:01:59.9]} 15. Ng3 {[%clk 0:02:32.4]}
15... e5 {[%clk 0:01:04.6]} 16. dxe5 {[%clk 0:02:20.9]} 16... Nxe5 {[%clk
0:01:03.3]} 17. Nxe5 {[%clk 0:02:19.6]} 17... Bxe5 {[%clk 0:01:02.9]} 18. Bf3
{[%clk 0:01:56.8]} 18... Rae8 {[%clk 0:00:46.2]} 19. Qd2 {[%clk 0:01:39.9]}
19... Bg6 {[%clk 0:00:45.6]} 20. Re2 {[%clk 0:01:31.6]} 20... Bf4 {[%clk
0:00:44.6]} 21. Qe1 {[%clk 0:01:30.7]} 21... Rxe2 {[%clk 0:00:44.4]} 22. Qxe2
{[%clk 0:01:31.6]} 22... Re8 {[%clk 0:00:44.3]} 23. Qf1 {[%clk 0:01:27.8]} 23...
Qe5 {[%clk 0:00:43.2]} 24. Qd1 {[%clk 0:01:03.2]} 24... h5 {[%clk 0:00:42]} 25.
Nf1 {[%clk 0:00:57.9]} 25... h4 {[%clk 0:00:38]} 26. h3 {[%clk 0:00:54.1]} 26...
Qg5 {[%clk 0:00:35.2]} 27. Kh1 {[%clk 0:00:43.1]} 27... Bd6 {[%clk 0:00:33.6]}
28. Qd4 {[%clk 0:00:37.2]} 28... Be5 {[%clk 0:00:32.8]} 29. Qg4 {[%clk
0:00:33.5]} 29... Qxg4 {[%clk 0:00:22.4]} 30. Bxg4 {[%clk 0:00:34.4]} 30... Bd6
{[%clk 0:00:18.4]} 31. Ne3 {[%clk 0:00:31.1]} 31... Bc5 {[%clk 0:00:18.1]} 32.
Re1 {[%clk 0:00:29.9]} 32... Kf7 {[%clk 0:00:17.4]} 33. Kg1 {[%clk 0:00:25.2]}
33... Re7 {[%clk 0:00:16.7]} 34. Kf1 {[%clk 0:00:25.4]} 34... Kf6 {[%clk
0:00:16.6]} 35. Bc8 {[%clk 0:00:21.9]} 35... Bd3+ {[%clk 0:00:16]} 36. Kg1
{[%clk 0:00:21.7]} 36... Re4 {[%clk 0:00:10.8]} 37. Ng4+ {[%clk 0:00:20.7]}
37... Ke7 {[%clk 0:00:08.9]} 38. Rxe4+ {[%clk 0:00:21]} 38... dxe4 {[%clk
0:00:07.7]} 39. Bxb7 {[%clk 0:00:21.9]} 39... Kd6 {[%clk 0:00:06.8]} 40. Bc8
{[%clk 0:00:21.5]} 40... Bc2 {[%clk 0:00:06.9]} 41. Ne3 {[%clk 0:00:19.7]} 41...
Bxe3 {[%clk 0:00:03.8]} 42. fxe3 {[%clk 0:00:20.6]} 42... Bxa4 {[%clk
0:00:04.5]} 43. Bf5 {[%clk 0:00:21.3]} 43... Ke5 {[%clk 0:00:04.2]} 44. Bd7
{[%clk 0:00:21.6]} 44... Bb5 {[%clk 0:00:04.4]} 45. Kf2 {[%clk 0:00:21.6]} 45...
Kd6 {[%clk 0:00:04.5]} 46. Bf5 {[%clk 0:00:21.4]} 46... Bd3 {[%clk 0:00:04.9]}
47. Ke1 {[%clk 0:00:20.6]} 47... Kc5 {[%clk 0:00:04.8]} 48. Kd2 {[%clk
0:00:20.3]} 48... Kd5 {[%clk 0:00:05]} 49. Bc8 {[%clk 0:00:20.2]} 49... c5
{[%clk 0:00:04.8]} 50. Bb7+ {[%clk 0:00:18.4]} 50... Ke5 {[%clk 0:00:05.2]} 51.
b3 {[%clk 0:00:18.8]} 51... g5 {[%clk 0:00:05.4]} 52. Bc8 {[%clk 0:00:16.2]}
52... Bf1 {[%clk 0:00:05.5]} 53. Bg4 {[%clk 0:00:13.3]} 53... Bxg2 {[%clk
0:00:05.7]} 54. Kc1 {[%clk 0:00:11.5]} 54... Bf3 {[%clk 0:00:06]} 55. Bc8 {[%clk
0:00:11.1]} 55... g4 {[%clk 0:00:05.6]} 56. Bxg4 {[%clk 0:00:07.8]} 56... Bxg4
{[%clk 0:00:05.4]} 57. hxg4 {[%clk 0:00:08.7]} 57... h3 {[%clk 0:00:06.3]} 58.
g5 {[%clk 0:00:08.2]} 58... h2 {[%clk 0:00:06.9]} 59. Kd2 {[%clk 0:00:08.1]}
59... h1=Q {[%clk 0:00:06.9]} 60. g6 {[%clk 0:00:08.3]} 60... Qg2+ {[%clk
0:00:07.4]} 0-1